Cogmind - Beta 9.6 @@@ ROGUE MODE // 2020.06.14 @ 23:26:03 Player: Teratos Result: Self-destructed Performance ------------- Evolutions (1) 500 Regions Visited (2) 400 Robots Destroyed (41) 205 Value Destroyed (691) 691 Prototype IDs (0) 0 Alien Tech Used (0) 0 Bonus (0) 0 TOTAL SCORE: 1796 Bonus ------- None Cogmind --------- Core Integrity 238/400 Matter 275/300 Energy 125/125 System Corruption 0% Temperature Cool (0) Movement Core (350) Ox6 Location -9/Materials Parts ------- > --- POWER (2) -------- Light Ion Engine > --- PROPULSION (2) --- (None) > --- UTILITY (3) ------ Small Storage Unit > --- WEAPON (2) ------- Heavy Particle Cannon Heavy Particle Cannon > --- INVENTORY (6) ---- Heavy Particle Cannon Heavy Particle Cannon Shock Bomb Launcher Shock Bomb Launcher Shock Bomb Launcher Shock Bomb Launcher Peak State ------------ > --- POWER ------------ Ion Engine > --- PROPULSION ------- Light Treads Light Treads > --- UTILITY ---------- Small Storage Unit Compact Battery Compact Battery > --- WEAPON ----------- Shock Bomb Launcher Shock Bomb Launcher > --- INVENTORY -------- Heavy Particle Cannon Heavy Particle Cannon Heavy Particle Cannon Heavy Particle Cannon Shock Bomb Launcher Shock Bomb Launcher [Rating: 17] Favorites ----------- Power Ion Engine Engine Ion Engine Propulsion Light Treads Treads Light Treads Utility Compact Battery Device Weight Redist. System Storage Compact Battery Weapon Shock Bomb Launcher Energy Gun EM Pulse Gun Energy Cannon Heavy Particle Cannon Launcher Shock Bomb Launcher Build | -11 -10 -9 ------- Run | Scr Mat Mat Slots Evolved 2 | . . 2 Power 1 | . . 1 Propulsion . | . . . Utility 1 | . . 1 Weapon . | . . . Parts Attached 20 | 6 . 14 Power 2 | 1 . 1 Engine 2 | 1 . 1 Core . | . . . Reactor . | . . . Propulsion 2 | 2 . . Treads 2 | 2 . . Leg . | . . . Wheel . | . . . Hover . | . . . Flight . | . . . Utility 5 | 1 . 4 Device 1 | . . 1 Storage 4 | 1 . 3 Processor . | . . . Hackware . | . . . Protection . | . . . Artifact . | . . . Weapon 11 | 2 . 9 Energy Gun 3 | 2 . 1 Energy Cannon 4 | . . 4 Ballistic Gun . | . . . Ballistic Cannon . | . . . Launcher 4 | . . 4 Special Weapon . | . . . Impact Weapon . | . . . Slashing Weapon . | . . . Piercing Weapon . | . . . Special Melee Weapon . | . . . Unidentified Prototypes . | . . . Parts Lost 6 | . . 6 Power 1 | . . 1 Propulsion 2 | . . 2 Utility 3 | . . 3 Weapon . | . . . Highest Loss Streak 3 | . . 3 Average Slot Usage (%) 78 | . 85 77 Engine 6 | . 14 5 Treads 21 | . 28 20 Storage 26 | . 14 28 Energy Gun 5 | . 28 1 Launcher 16 | . . 19 Naked Turns . | . . . Heaviest Build 23 | 13 13 23 Greatest Support 46 | 40 40 46 Greatest Overweight (x) 6 | . . 6 Average Overweight (x) . | . . . Largest Inventory Capacity 6 | 6 6 6 Average Capacity 5 | 5 6 6 Most Carried 6 | . . 6 Average Carried 4 | . . 5 Final Capacity 6 | 6 6 6 Final Carried 6 | . . 6 Class Distribution -------------------- 100% | Mutant Dominant Class ---------------- Mutant | -10/Materials Mutant | -9/Materials Resources | -11 -10 -9 ----------- Run | Scr Mat Mat Matter Collected 632 | 115 54 463 Remotely . | . . . Salvage Created 1524 | . 54 1470 Parts 110 | . 7 103 Haulers Intercepted . | . . . Recyclers Shooed 6 | . . 6 Parts Field Recycled . | . . . Retrieved Matter . | . . . Parts Self-Destructed . | . . . Prevented . | . . . Kills | -11 -10 -9 ------- Run | Scr Mat Mat Combat Hostiles Destroyed 23 | . 3 20 Guns 3 | . 3 . AOE 20 | . . 20 Classes Destroyed 7 | . 1 6 Worker 1 | . . 1 Builder 9 | . . 9 Recycler 6 | . . 6 Watcher 2 | . . 2 Swarmer 13 | . 3 10 Grunt 6 | . . 6 Sentry 4 | . . 4 Best Kill Streak 9 | . 3 9 Combat Bots Only 4 | . 3 4 Max Kills in Single Turn 4 | . 1 4 Gunslinging . | . . . Exploded 3 | . . 3 Melee . | . . . Uniques/NPCs Destroyed . | . . . Combat | -11 -10 -9 -------- Run | Scr Mat Mat Damage Taken 932 | . 62 870 Core 170 | . 8 162 Absorbed by Shields . | . . . Core Remaining (%) 98 | 100 96 . Volleys Fired 35 | . 5 30 Largest 2 | . 2 2 Hottest 150 | . 90 150 Shots Fired 70 | . 10 60 Gun 10 | . 10 . Cannon 2 | . . 2 Launcher 58 | . . 58 Special . | . . . Kinetic . | . . . Thermal 7 | . 5 2 Explosive . | . . . Electromagnetic 63 | . 5 58 Robot Hit Streak 10 | . 2 10 Robot Miss Streak 3 | . 2 3 Penetration Max . | . . . Secondary Targets . | . . . Shots Hit Robots 18 | . 4 14 Core Hits 51 | . 3 48 Critical Hits . | . . . Critical Kills . | . . . Critical Parts Destroyed . | . . . Melee Attacks . | . . . Impact . | . . . Slashing . | . . . Piercing . | . . . Sneak Attacks . | . . . Combat Hostiles . | . . . Follow-up Attacks . | . . . Damage Inflicted 1853 | . 36 1817 Guns 36 | . 36 . Cannons 50 | . . 50 Explosions 1767 | . . 1767 Melee . | . . . Ramming . | . . . Kinetic . | . . . Thermal 221 | . 13 208 Explosive . | . . . Electromagnetic 1632 | . 23 1609 Impact . | . . . Slashing . | . . . Piercing . | . . . Highest Corruption . | . . . Average Corruption . | . . . Corruption Purged . | . . . Overload Shots . | . . . Overflow Damage 86 | . . 86 Projectiles . | . . . Explosions 86 | . . 86 Melee . | . . . Knockbacks . | . . . Impact . | . . . Kinetic . | . . . Secondary . | . . . Self-Inflicted Damage 138 | . . 138 Shots 12 | . . 12 Rammed 1 | . . 1 Targets Rammed 1 | . . 1 Kicked . | . . . Crushed . | . . . Highest Temperature 132 | . 132 114 Average Temperature 33 | . 67 23 Received Heat Transfer 255 | . . 255 Siege Activations . | . . . Robots Corrupted . | . . . Combat Hostiles . | . . . Parts Fried 5 | . . 5 Impact Corruptions . | . . . Robots Melted . | . . . Combat Hostiles . | . . . Parts Melted 1 | . 1 . Heat Transferred 361 | . 37 324 Parts Sabotaged . | . . . Parts Stolen . | . . . Parts Stripped . | . . . Power Chain Reactions 12 | . . 12 Missiles Intercepted . | . . . Alert | -11 -10 -9 ------- Run | Scr Mat Mat Peak Influence 335 | . 75 335 Average Influence 123 | . 18 151 Maximum Alert Level 1 | . . 1 Low Security (%) 69 | 100 100 61 Level 1 30 | . . 38 Level 2 . | . . . Level 3 . | . . . Level 4 . | . . . Level 5 . | . . . High Security . | . . . Max Security . | . . . Squads Dispatched 2 | . . 2 Investigation 1 | . . 1 Extermination . | . . . Reinforcement 1 | . . 1 Assault . | . . . Garrison . | . . . Intercept . | . . . Construction Impeded 1 | . . 1 Haulers Reinforced . | . . . Stealth | -11 -10 -9 --------- Run | Scr Mat Mat Distress Signals 2 | . . 2 Communications Jammed . | . . . Distress Signals . | . . . Times Spotted 27 | . 3 24 Peak Tracking Total 5 | . 3 5 Tactical Retreats 3 | . . 3 Traps | -11 -10 -9 ------- Run | Scr Mat Mat Traps Triggered . | . . . Indirectly . | . . . Trap Hack Attempts . | . . . Triggered . | . . . Disarmed . | . . . Reprogrammed . | . . . Reused . | . . . Traps Extracted . | . . . Installed . | . . . Triggered . | . . . Machines | -11 -10 -9 ---------- Run | Scr Mat Mat Machines Disabled 5 | . . 5 Max in Single Turn 1 | . . 1 Machines Sabotaged . | . . . Garrisons Compromised . | . . . Overloaded Fab Kills . | . . . Fab Network Shutdowns . | . . . Hacking | -11 -10 -9 --------- Run | Scr Mat Mat Machines Accessed 1 | . 1 . Terminals 1 | . 1 . Fabricators . | . . . Repair Stations . | . . . Recycling Units . | . . . Scanalyzers . | . . . Garrison Access . | . . . Total Hacks 2 | . 2 . Successful 1 | . 1 . Failed 1 | . 1 . Catastrophic . | . . . Database Lockouts . | . . . Manual . | . . . Terminals 2 | . 2 . Fabricators . | . . . Repair Stations . | . . . Recycling Units . | . . . Scanalyzers . | . . . Garrison Access . | . . . Terminal Hacks 1 | . 1 . Zone Layout 1 | . 1 . Fabricator Hacks . | . . . Repair Station Hacks . | . . . Recycling Unit Hacks . | . . . Scanalyzer . | . . . Garrison Access Hacks . | . . . Unauthorized Hacks . | . . . Terminals . | . . . Fabricators . | . . . Repair Stations . | . . . Recycling Units . | . . . Scanalyzers . | . . . Garrison Access . | . . . Data Cores Recovered . | . . . Used . | . . . Hacking Detections . | . . . Full Trace Events . | . . . Feedback Events . | . . . Feedback Blocked . | . . . Robot Schematics Acquired . | . . . Robots Built . | . . . Matter . | . . . Time . | . . . Total Robot Build Rating . | . . . Part Schematics Acquired . | . . . Parts Built . | . . . Matter . | . . . Time . | . . . Total Part Build Rating . | . . . Parts Repaired . | . . . Time . | . . . Parts Recycled . | . . . Recycled Matter . | . . . Retrieved Matter . | . . . Retrieved Components . | . . . Parts Scanalyzed . | . . . Part Schematics Acquired . | . . . Parts Damaged . | . . . Bothacking | -11 -10 -9 ------------ Run | Scr Mat Mat Used RIF Installer . | . . . Robots Hacked . | . . . Non-combat . | . . . Combat . | . . . Robot Hacks Applied . | . . . Relay Couplers Released . | . . . Robots Rewired . | . . . Allies Hacked . | . . . Hacks Repelled . | . . . Allies | -11 -10 -9 -------- Run | Scr Mat Mat Total Allies . | . . . Largest Group . | . . . Highest-Rated Group . | . . . Highest-Rated Ally . | . . . Total Orders . | . . . Ally Attacks . | . . . Total Damage . | . . . Kills . | . . . Allies Corrupted . | . . . Allies Melted . | . . . Intel | -11 -10 -9 ------- Run | Scr Mat Mat Robot Analysis Total . | . . . Derelict Logs Recovered . | . . . Drone Launches . | . . . Drone Recoveries . | . . . Exploration | -11 -10 -9 ------------- Run | Scr Mat Mat Turns Passed 1170 | 62 176 932 Spaces Moved 456 | 35 101 320 Core 3 | 2 . 1 Treads 453 | 33 101 319 Legs . | . . . Wheels . | . . . Hover . | . . . Flight . | . . . Fastest Speed 50 | 50 160 160 Average Speed 160 | 153 160 162 Slowest Speed 350 | 160 160 350 Overloaded Moves . | . . . Propulsion Burnouts . | . . . Robots Hopped . | . . . Cave-ins Triggered . | . . . Exploration Rate (%) 17 | 4 28 20 Regions Visited 2 Branch Regions . Pre-discovered Areas . | . . . Known Exits Taken . | . . . Unknown Exits Taken 2 | 1 1 . Scrap Searched . | . . . Spaces Dug 8 | . . 8 Terrain Destroyed 70 | . . 70 Melee . | . . . Projectile . | . . . AOE 70 | . . 70 Actions | -11 -10 -9 --------- Run | Scr Mat Mat Total 813 | 40 106 667 Wait 293 | . 1 292 Move 454 | 34 100 320 Hop . | . . . Pick Up 6 | . . 6 Fast Attach 14 | 6 . 8 Attach . | . . . Detach . | . . . Swap 6 | . . 6 Drop 4 | . . 4 Fire 35 | . 5 30 Melee . | . . . Ram . | . . . Kick . | . . . Crush 1 | . . 1 Escape Stasis . | . . . Rewire . | . . . Trap . | . . . Miscellaneous . | . . . Route ------- -11/Scrapyard -10/Materials -9/Materials History --------- Turn | Location | Event 6 | -11/Scrapyard | Discovered new exit (range 15) 63 | -11/Scrapyard | Entered Materials 215 | -10/Materials | Discovered new exit (range 16) 239 | -10/Materials | Entered another Materials area 239 | -9/Materials | Evolved 2 slots: Power x1, Utility x1 358 | -9/Materials | Build established: Mutant 1171 | -9/Materials | Self-destructed Last Messages --------------- 01104_ R-06 Scavenger destroyed. 01104_ Chain reaction triggered in Lgt. Ion Engine. 01104_ S-10 Pest destroyed. 01110_ Acquired 25 matter. 01126_ U-05 Engineer lays Concrete. 01132_ U-05 Engineer builds a Wall. 01133_ U-05 Engineer lays Concrete. 01144_ R-06 Scavenger collects Signal Interpreter. 01147_ R-06 Scavenger collects Hover Unit. 01150_ Lgt. Treads destroyed. 01150_ Destroyed Lgt. Treads. 01150_ U-05 Engineer destroyed. 01150_ G-34 Mercenary destroyed. 01153_ Com. Battery destroyed. 01153_ Destroyed Com. Battery. 01153_ Y-45 Defender destroyed. 01153_ G-34 Mercenary destroyed. 01153_ Heat Sink fried. 01153_ G-34 Mercenary destroyed. 01162_ Com. Battery destroyed. Map ----- +----------------------------------------------------+ | ????# + # # """ !! ############ | | ????## # # # !] ## # "" | | ?????# # ### #+################ # ""S | | ?????# # ##### ##?????????????# # "" | | ?????########## #?????????????# + | | % #?????????????# # | | ??????######### #?????????????# # ! | | ???????????########### #????########?# ####### | | ???????????# ## #????#! #?# # | | ???????????# """ ##[! #????# #?# # """" | | ??????????## ##%= ##???# #?# # """" | | ?????????### #! ##### ### + """" | | ?????????# #%= #%% # | | ?????????# #[% %/%%= #""" / | | ?????????# #[=%[ #"Y / | | ?????????# " #[!= k############## #""" | | ?????????# " #####u#????????????# # | | ?????????######### ####?#u#????????????# ####### | | ??????????# ## #???# #????????????+ #?????? | | ??????????###########???# #????????????# #?????? | | ????????????????????????# #????????????# #?????? | | ????????????????????????# #????????????# #?????? | | ????????????????????????# #????????????# #?????? | | ????????????????????????# #????????????# #?????? | | ????????????????????????# #????????????# #?????? | | ????????????????????????#@#????????????# #?????? | | ????????????????????????# #????????????? #?????? | | ????????????????????????# #????????????? #?????? | | ????????????????????????#=#??????????????????????? | | ????????????????????????%=*??????????????????????? | | ????????????????????????!! ??????????????????????? | | ???????????????????????? % ??????????????????????? | | ????????????????????????!==??????????????????????? | | ????????????????????????*%[??????????????????????? | | ????????????????????????==!??????????????????????? | | ???????????????????????#%[Y;?????????????????????? | | ???????????????????????=[== ?????????????????????? | | ??????????????????????? ?????????????????????? | | ??????????????????????? ?????????????????????? | | ??????????????????????? ?????????????????????? | | ??????????????????????? ?????????????????????? | | ?????????????????????????????????????????????????? | | ?????????????????????????????????????????????????? | | ?????????????????????????????????????????????????? | | ?????????????????????????????????????????????????? | | ?????????????????????????????????????????????????? | | ?????????????????????????????????????????????????? | | ?????????????????????????????????????????????????? | | ?????????????????????????????????????????????????? | | ?????????????????????????????????????????????????? | +----------------------------------------------------+ Best States ------------- Heat Dissipation 28 Energy Generation 10 Energy Capacity 850 Matter Stores 300 Matter Capacity 300 Sight Range 16 Terrain Scan Density 10 Additional Mass Support 6 Evasion (%) 40 Recoil Reduction 2 Item Schematics ----------------- None Robot Schematics ------------------ None Fabricated ------------ Nothing Alien Tech Used ----------------- None Achievements -------------- None Challenges ------------ None Game ------ Seed RecoilMiniWell Manual? 0 Play Time 00:08:50 Cumulative 37.5 hours Start 2020.06.14 @ 16:31:19 End 2020.06.14 @ 23:26:03 Sessions 1 Manual Loads 0 Difficulty Rogue Special Mode None Game No. 86 Rogue 86 Adventurer 0 Explorer 0 Win Type - Total 0 Types 0/0/0/0/0/0/0 Lore% 24 Gallery% 26 Achievement% 22 Wizard Run 0 Options --------- ASCII 0 Keyboard 0 Movement Numpad Keybinds 0 Fullscreen 1 Font 18/SmallcapsGlow Map View 76x50 Tactical HUD 1 Map Filters NONE Filters NONE Steam 1 RUN: 251ee9ed-6f71-40b5-be7e-d3f301362f48